fUST/lending_fUST_20240802
["ID","MTS","AMOUNT","RATE_DAILY","PERIOD"]
[333863087,1722579052034,-500.0,0.00013698,2]
[333863088,1722579052048,-677.81,0.00013698,2]
[333863089,1722579052061,-500.0,0.00013698,2]
[333863090,1722579052075,-500.0,0.00013698,2]
[333863091,1722579052088,-500.0,0.00013698,2]
[333863092,1722579052102,-644.83585698,0.00013698,2]
[333863093,1722579052115,-1034.52,0.00013698,2]
[333863094,1722579052128,-500.0,0.00013698,2]
[333863095,1722579052142,-746.99,0.00013698,2]
[333863096,1722579052155,-500.0,0.00013698,2]
[333863097,1722579052169,-1238.420534,0.00013698,2]
[333863098,1722579052182,-1238.420534,0.00013698,2]
[333863099,1722579052196,-416.455586,0.00013698,2]
[333863100,1722579052208,-1238.420534,0.00013698,2]
[333863101,1722579052222,-416.455586,0.00013698,2]
[333863102,1722579052235,-1238.420534,0.00013698,2]
[333863103,1722579052248,-416.455586,0.00013698,2]
[333863104,1722579052262,-1238.420534,0.00013698,2]
[333863105,1722579052275,-416.455586,0.00013698,2]
[333863106,1722579052288,-500.0,0.00013698,2]
[333863107,1722579052301,-416.455586,0.00013698,2]
[333863108,1722579052315,-1238.420534,0.00013698,2]
[333863109,1722579052327,-1238.420534,0.00013698,2]
[333863110,1722579052341,-416.455586,0.00013698,2]
[333863111,1722579052354,-500.0,0.00013698,2]
[333863112,1722579052367,-416.455586,0.00013698,2]
[333863113,1722579052379,-1238.420534,0.00013698,2]
[333863114,1722579052389,-416.455586,0.00013698,2]
[333863115,1722579052398,-1238.420534,0.00013698,2]
[333863116,1722579052408,-416.455586,0.00013698,2]
[333863117,1722579052418,-1238.420544,0.00013698,2]
[333863118,1722579052427,-416.455594,0.00013698,2]
[333863119,1722579052550,-1121.06,0.00013698,2]
[333863120,1722579052566,-817.67,0.00013698,2]
[333863121,1722579052577,-500.0,0.00013698,2]
[333863122,1722579052588,-500.0,0.00013698,2]
[333863123,1722579052598,-500.0,0.00013698,2]
[333863124,1722579052609,-746.97,0.00013698,2]
[333863125,1722579052618,-1338.14,0.00013698,2]
[333863126,1722579052631,-1468.19,0.00013698,2]
[333863127,1722579052643,-500.0,0.00013698,2]
[333863128,1722579052653,-584.45319799,0.00013698,2]
[333863129,1722579052663,-310.0,0.00013699,2]
[333863130,1722579052673,-310.0,0.00013699,2]
[333863131,1722579052683,-310.0,0.00013699,2]
[333863132,1722579052692,-310.0,0.00013699,2]
[333863133,1722579052702,-310.0,0.00013699,2]
[333863134,1722579052713,-233.65833,0.00013699,2]
[333863135,1722579052722,-156.169019,0.00013699,2]
[333863136,1722579052731,-156.169019,0.00013699,2]
[333863137,1722579052742,-156.169019,0.00013699,2]
[333863138,1722579052754,-156.169019,0.00013699,2]
[333863139,1722579052765,-156.169019,0.00013699,2]
[333863140,1722579052776,-156.169019,0.00013699,2]
[333863141,1722579052788,-156.169019,0.00013699,2]
[333863142,1722579052798,-156.169019,0.00013699,2]
[333863143,1722579052809,-156.169019,0.00013699,2]
[333863144,1722579052818,-156.169019,0.00013699,2]
[333863145,1722579052830,-156.169019,0.00013699,2]
[333863146,1722579052841,-156.169019,0.00013699,2]
[333863147,1722579052852,-156.169019,0.00013699,2]
[333863148,1722579052861,-156.169019,0.00013699,2]
[333863149,1722579052870,-156.169019,0.00013699,2]
[333863150,1722579052880,-156.169019,0.00013699,2]
[333863151,1722579052891,-156.169019,0.00013699,2]
[333863152,1722579052900,-156.169019,0.00013699,2]
[333863153,1722579052908,-156.169019,0.00013699,2]
[333863154,1722579052917,-156.169021,0.00013699,2]
[333863155,1722579052926,-1732.333822,0.00013699,2]
[333863156,1722579052935,-221.005252,0.00013699,2]
[333863157,1722579052946,-221.005252,0.00013699,2]
[333863158,1722579052955,-221.005252,0.00013699,2]
[333863159,1722579052965,-221.005252,0.00013699,2]
[333863160,1722579052974,-221.005252,0.00013699,2]
[333863161,1722579052984,-221.005252,0.00013699,2]
[333863162,1722579052993,-221.005252,0.00013699,2]
[333863163,1722579053003,-221.005252,0.00013699,2]
[333863164,1722579053013,-221.005252,0.00013699,2]
[333863165,1722579053024,-221.005252,0.00013699,2]
[333863166,1722579053033,-221.005252,0.00013699,2]
[333863167,1722579053043,-221.005252,0.00013699,2]
[333863168,1722579053053,-221.005252,0.00013699,2]
[333863169,1722579053062,-221.005252,0.00013699,2]
[333863170,1722579053071,-221.005252,0.00013699,2]
[333863171,1722579053081,-221.005252,0.00013699,2]
[333863172,1722579053091,-221.005252,0.00013699,2]
[333863173,1722579053101,-221.005252,0.00013699,2]
[333863174,1722579053110,-221.005252,0.00013699,2]
[333863175,1722579053119,-221.005256,0.00013699,2]
[333863176,1722579053129,-3000.0,0.00013699,2]
[333863177,1722579053140,-1000.0,0.00013699,2]
[333863178,1722579053149,-1000.0,0.00013699,2]
[333863179,1722579053159,-1000.0,0.00013699,2]
[333863180,1722579053168,-671.620733,0.00013699,2]
[333863181,1722579053178,-500.0,0.00013699,2]
[333863182,1722579053187,-500.0,0.00013699,2]
[333863183,1722579053196,-500.0,0.00013699,2]
[333863184,1722579053206,-500.0,0.00013699,2]
[333863185,1722579053215,-500.0,0.00013699,2]
[333863186,1722579053224,-500.0,0.00013699,2]
[333863187,1722579053234,-310.55199447,0.00013699,2]
[333863188,1722579053243,-500.0,0.00013699,2]
[333863189,1722579053252,-500.0,0.00013699,2]
[333863190,1722579053262,-500.0,0.00013699,2]
[333863191,1722579053271,-500.0,0.00013699,2]
[333863192,1722579053280,-500.0,0.00013699,2]
[333863193,1722579053290,-500.0,0.00013699,2]
[333863194,1722579053300,-500.0,0.00013699,2]
[333863195,1722579053309,-500.0,0.00013699,2]
[333863196,1722579053321,-500.0,0.00013699,2]
[333863197,1722579053332,-500.0,0.00013699,2]
[333863198,1722579053342,-500.0,0.00013699,2]
[333863199,1722579053351,-500.0,0.00013699,2]
[333863200,1722579053363,-500.0,0.00013699,2]
[333863201,1722579053373,-500.0,0.00013699,2]
[333863202,1722579053383,-500.0,0.00013699,2]
[333863203,1722579053395,-500.0,0.00013699,2]
[333863204,1722579053404,-500.0,0.00013699,2]
[333863205,1722579053413,-500.0,0.00013699,2]
[333863206,1722579053422,-500.0,0.00013699,2]
[333863207,1722579053433,-500.0,0.00013699,2]
[333863208,1722579053442,-500.0,0.00013699,2]
[333863209,1722579053451,-500.0,0.00013699,2]
[333863210,1722579053461,-500.0,0.00013699,2]
[333863211,1722579053470,-500.0,0.00013699,2]
[333863212,1722579053484,-500.0,0.00013699,2]
[333863213,1722579053495,-500.0,0.00013699,2]
[333863214,1722579053507,-500.0,0.00013699,2]
[333863215,1722579053518,-500.0,0.00013699,2]
[333863216,1722579053528,-500.0,0.00013699,2]
[333863217,1722579053540,-500.0,0.00013699,2]
[333863218,1722579053556,-500.0,0.00013699,2]
[333863219,1722579053567,-500.0,0.00013699,2]
[333863220,1722579053576,-500.0,0.00013699,2]
[333863221,1722579053587,-500.0,0.00013699,2]
[333863222,1722579053599,-500.0,0.00013699,2]
[333863223,1722579053608,-500.0,0.00013699,2]
[333863224,1722579053619,-500.0,0.00013699,2]
[333863225,1722579053628,-500.0,0.00013699,2]
[333863226,1722579053641,-500.0,0.00013699,2]
[333863227,1722579053650,-500.0,0.00013699,2]
[333863228,1722579053660,-500.0,0.00013699,2]
[333863229,1722579053669,-500.0,0.00013699,2]
[333863230,1722579053680,-500.0,0.00013699,2]
[333863231,1722579053689,-500.0,0.00013699,2]
[333863232,1722579053699,-500.0,0.00013699,2]
[333863233,1722579053708,-500.0,0.00013699,2]
[333863234,1722579053717,-500.0,0.00013699,2]
[333863235,1722579053727,-500.0,0.00013699,2]
[333863236,1722579053735,-500.0,0.00013699,2]
[333863237,1722579053745,-500.0,0.00013699,2]
[333863238,1722579053754,-500.0,0.00013699,2]
[333863239,1722579053764,-500.0,0.00013699,2]
[333863240,1722579053774,-500.0,0.00013699,2]
[333863241,1722579053784,-500.0,0.00013699,2]
[333863242,1722579053793,-500.0,0.00013699,2]
[333863243,1722579053803,-500.0,0.00013699,2]
[333863244,1722579053813,-581.05519945,0.00013699,2]
[333863245,1722579053823,-500.0,0.00013699,2]
[333863246,1722579053833,-500.0,0.00013699,2]
[333863247,1722579053844,-500.0,0.00013699,2]
[333863248,1722579053854,-500.0,0.00013699,2]
[333863249,1722579053864,-500.0,0.00013699,2]
[333863250,1722579053875,-150.112233,0.000137,2]
[333863251,1722579053887,-150.112233,0.000137,2]
[333863252,1722579053898,-150.112233,0.000137,2]
[333863253,1722579053910,-150.112233,0.000137,2]
[333863254,1722579053919,-155.0,0.000137,2]
[333863255,1722579053929,-6897.38,0.00013789,2]
[333863256,1722579053940,-6897.38,0.00013789,2]
[333863257,1722579053950,-6897.38,0.00013789,2]
[333863258,1722579053961,-6897.38,0.00013789,2]
[333863259,1722579053970,-6897.53033901,0.00013789,2]
[333863260,1722579053981,-3134.94,0.00013795,2]
[333863261,1722579053991,-150.112233,0.000138,2]
[333863262,1722579054003,-151.0,0.000138,2]
[333863263,1722579054013,-151.0,0.000138,2]
[333863264,1722579054023,-3134.94,0.0001385,2]
[333863265,1722579054032,-3134.94,0.0001386,2]
[333863266,1722579054041,-3134.94,0.00013861,2]
[333863267,1722579054055,-151.0,0.00013862,2]
[333863268,1722579054064,-200.660254,0.00013862,2]
[333863269,1722579054074,-3134.94,0.0001387,2]
[333863270,1722579054084,-3134.94,0.0001387,2]
[333863271,1722579054093,-151.0,0.00013871,2]
[333863272,1722579054102,-151.0,0.00013871,2]
[333863273,1722579054111,-151.0,0.00013871,2]
[333863274,1722579054121,-3134.94,0.00013871,2]
[333863275,1722579054130,-3134.94,0.00013871,2]
[333863276,1722579054141,-3134.94,0.00013871,2]
[333863277,1722579054150,-3134.94,0.00013871,2]
[333863278,1722579054160,-3134.94,0.00013871,2]
[333863279,1722579054170,-3135.06,0.00013871,2]
[333863280,1722579054181,-151.0,0.00013872,2]
[333863281,1722579054191,-151.0,0.00013872,2]
[333863282,1722579054201,-150.112233,0.000139,2]
[333863283,1722579054211,-150.112233,0.000139,2]
[333863284,1722579054220,-600.0,0.00013939,2]
[333863285,1722579054230,-296.066174,0.00013961,2]
[333863286,1722579054241,-507.14043006,0.00013972,2]
[333863287,1722579054250,-500.0,0.00013972,2]
[333863288,1722579054259,-455.65314657,0.00013972,2]
[333863289,1722579054268,-546.96301877,0.00013972,2]
[333863290,1722579054277,-500.0,0.00013972,2]
[333863291,1722579054287,-500.0,0.00013972,2]
[333863292,1722579054296,-444.03283035,0.00013972,2]
[333863293,1722579054306,-500.0,0.00013972,2]
[333863294,1722579054315,-503.07522859,0.00013972,2]
[333863295,1722579054324,-500.0,0.00013972,2]
[333863296,1722579054334,-500.0,0.00013972,2]
[333863297,1722579054343,-500.0,0.00013972,2]
[333863298,1722579054352,-500.0,0.00013972,2]
[333863299,1722579054361,-974.01,0.00013972,2]
[333863300,1722579054370,-500.0,0.00013972,2]
[333863301,1722579054383,-500.0,0.00013972,2]
[333863302,1722579054394,-344.53344304,0.00013972,2]
[333863303,1722579054405,-500.0,0.00013972,2]
[333863304,1722579054415,-500.0,0.00013972,2]
[333863305,1722579054425,-500.0,0.00013972,2]
[333863306,1722579054436,-500.0,0.00013972,2]
[333863307,1722579054525,-500.0,0.00013972,2]
[333863308,1722579054535,-500.0,0.00013972,2]
[333863309,1722579054547,-500.0,0.00013972,2]
[333863310,1722579054558,-500.0,0.00013972,2]
[333863311,1722579054569,-500.0,0.00013972,2]
[333863312,1722579054579,-500.0,0.00013972,2]
[333863313,1722579054592,-503.92551539,0.00013972,2]
[333863314,1722579054601,-500.0,0.00013972,2]
[333863315,1722579054611,-500.0,0.00013972,2]
[333863316,1722579054624,-500.0,0.00013972,2]
[333863317,1722579054633,-500.0,0.00013972,2]
[333863318,1722579054646,-500.0,0.00013972,2]
[333863319,1722579054656,-500.0,0.00013972,2]
[333863320,1722579054666,-641.78,0.00013972,2]
[333863321,1722579054676,-522.68315535,0.00013972,2]
[333863322,1722579054686,-500.0,0.00013972,2]
[333863323,1722579054696,-500.0,0.00013972,2]
[333863324,1722579054706,-500.0,0.00013972,2]
[333863325,1722579054716,-500.0,0.00013972,2]
[333863326,1722579054726,-723.5,0.00013972,2]
[333863327,1722579054736,-500.0,0.00013972,2]
[333863328,1722579054746,-500.0,0.00013972,2]
[333863329,1722579054756,-500.0,0.00013972,2]
[333863330,1722579054766,-1075.74,0.00013972,2]
[333863331,1722579054775,-500.0,0.00013972,2]
[333863332,1722579054786,-500.0,0.00013972,2]
[333863333,1722579054796,-947.16,0.00013972,2]
[333863334,1722579054808,-500.0,0.00013972,2]
[333863335,1722579054819,-260.0,0.00013972,2]
[333863336,1722579054829,-500.0,0.00013972,2]
[333863337,1722579054838,-500.0,0.00013972,2]
[333863338,1722579054847,-772.41,0.00013972,2]
[333863339,1722579054857,-535.22408806,0.00013972,2]
[333863340,1722579054866,-500.0,0.00013972,2]
[333863341,1722579054876,-500.0,0.00013972,2]
[333863342,1722579054885,-500.0,0.00013972,2]
[333863343,1722579054896,-500.0,0.00013972,2]
[333863344,1722579054906,-500.0,0.00013972,2]
[333863345,1722579054915,-500.0,0.00013972,2]
[333863346,1722579054925,-500.0,0.00013972,2]
[333863347,1722579054935,-500.0,0.00013972,2]
[333863348,1722579054946,-902.37,0.00013972,2]
[333863349,1722579054956,-500.0,0.00013972,2]
[333863350,1722579054966,-500.0,0.00013972,2]
[333863351,1722579054975,-500.0,0.00013972,2]
[333863352,1722579054985,-511.01073762,0.00013972,2]
[333863353,1722579054995,-500.0,0.00013972,2]
[333863354,1722579055005,-500.0,0.00013972,2]
[333863355,1722579055015,-508.42283794,0.00013972,2]
[333863356,1722579055025,-500.0,0.00013972,2]
[333863357,1722579055035,-500.0,0.00013972,2]
[333863358,1722579055045,-530.4678724,0.00013972,2]
[333863359,1722579055055,-500.0,0.00013972,2]
[333863360,1722579055065,-735.93,0.00013972,2]
[333863361,1722579055074,-500.0,0.00013972,2]
[333863362,1722579055084,-500.0,0.00013972,2]
[333863363,1722579055094,-500.0,0.00013972,2]
[333863364,1722579055105,-765.76,0.00013972,2]
[333863365,1722579055115,-500.0,0.00013972,2]
[333863366,1722579055124,-566.91,0.00013972,2]
[333863367,1722579055137,-500.0,0.00013972,2]
[333863368,1722579055147,-500.0,0.00013972,2]
[333863369,1722579055157,-592.23,0.00013972,2]
[333863370,1722579055167,-500.0,0.00013972,2]
[333863371,1722579055177,-500.0,0.00013972,2]
[333863372,1722579055187,-503.1,0.00013972,2]
[333863373,1722579055197,-500.0,0.00013972,2]
[333863374,1722579055207,-2064.69,0.00013972,2]
[333863375,1722579055217,-500.0,0.00013972,2]
[333863376,1722579055228,-500.0,0.00013972,2]
[333863377,1722579055238,-500.0,0.00013972,2]
[333863378,1722579055248,-978.62,0.00013972,2]
[333863379,1722579055258,-500.0,0.00013972,2]
[333863380,1722579055268,-500.0,0.00013972,2]
[333863381,1722579055278,-174.91484692,0.00013972,2]
[333863382,1722579055287,-475.3610764,0.00013972,2]
[333863383,1722579055297,-531.0553631,0.00013972,2]
[333863384,1722579055307,-500.0,0.00013972,2]
[333863385,1722579055317,-500.0,0.00013972,2]
[333863386,1722579055327,-500.0,0.00013972,2]
[333863387,1722579055336,-2504.91,0.00013972,2]
[333863388,1722579055345,-500.0,0.00013972,2]
[333863389,1722579055355,-1083.36,0.00013972,2]
[333863390,1722579055364,-500.0,0.00013972,2]
[333863391,1722579055374,-533.78486071,0.00013972,2]
[333863392,1722579055387,-658.96,0.00013972,2]
[333863393,1722579055399,-500.0,0.00013972,2]
[333863394,1722579055410,-506.87119362,0.00013972,2]
[333863395,1722579055420,-500.0,0.00013972,2]
[333863396,1722579055431,-515.27126426,0.00013972,2]
[333863397,1722579055440,-500.0,0.00013972,2]
[333863398,1722579055450,-500.0,0.00013972,2]
[333863399,1722579055462,-500.0,0.00013972,2]
[333863400,1722579055474,-500.0,0.00013972,2]
[333863401,1722579055485,-500.0,0.00013972,2]
[333863402,1722579055495,-503.91041123,0.00013972,2]
[333863403,1722579055505,-503.86843913,0.00013972,2]
[333863404,1722579055515,-506.76467294,0.00013972,2]
[333863405,1722579055525,-500.0,0.00013972,2]
[333863406,1722579055535,-579.40700129,0.00013972,2]
[333863407,1722579055551,-500.0,0.00013972,2]
[333863408,1722579055563,-509.50835919,0.00013972,2]
[333863409,1722579055573,-737.68,0.00013972,2]
[333863410,1722579055583,-804.68,0.00013972,2]
[333863411,1722579055592,-500.0,0.00013972,2]
[333863412,1722579055602,-500.0,0.00013972,2]
[333863413,1722579055613,-500.0,0.00013972,2]
[333863414,1722579055625,-512.26519944,0.00013972,2]
[333863415,1722579055634,-500.0,0.00013972,2]
[333863416,1722579055646,-500.0,0.00013972,2]
[333863417,1722579055656,-504.20129647,0.00013972,2]
[333863418,1722579055666,-503.71296841,0.00013972,2]
[333863419,1722579055676,-500.0,0.00013972,2]
[333863420,1722579055685,-500.0,0.00013972,2]
[333863421,1722579055694,-823.41,0.00013972,2]
[333863422,1722579055703,-1365.74,0.00013972,2]
[333863423,1722579055713,-450.0,0.00013972,2]
[333863424,1722579055722,-500.0,0.00013972,2]
[333863425,1722579055733,-500.0,0.00013972,2]
[333863426,1722579055744,-502.73101478,0.00013972,2]
[333863427,1722579055755,-521.47793954,0.00013972,2]
[333863428,1722579055766,-500.0,0.00013972,2]
[333863429,1722579055776,-500.0,0.00013972,2]
[333863430,1722579055785,-689.75,0.00013972,2]
[333863431,1722579055795,-500.0,0.00013972,2]
[333863432,1722579055804,-504.8523207,0.00013972,2]
[333863433,1722579055813,-500.0,0.00013972,2]
[333863434,1722579055822,-500.0,0.00013972,2]
[333863435,1722579055832,-987.68,0.00013972,2]
[333863436,1722579055843,-500.0,0.00013972,2]
[333863437,1722579055853,-500.0,0.00013972,2]
[333863438,1722579055862,-504.37423345,0.00013972,2]
[333863439,1722579055872,-500.0,0.00013972,2]
[333863440,1722579055882,-500.0,0.00013972,2]
[333863441,1722579055893,-500.0,0.00013972,2]
[333863442,1722579055902,-501.91796258,0.00013972,2]
[333863443,1722579055912,-500.0,0.00013972,2]
[333863444,1722579055922,-500.0,0.00013972,2]
[333863445,1722579055931,-550.17,0.00013972,2]
[333863446,1722579055941,-500.0,0.00013972,2]
[333863447,1722579055950,-1094.99,0.00013972,2]
[333863448,1722579055959,-525.0756472,0.00013972,2]
[333863449,1722579055969,-500.0,0.00013972,2]
[333863450,1722579055979,-518.89,0.00013972,2]
[333863451,1722579055989,-1285.67,0.00013972,2]
[333863452,1722579056000,-556.09694507,0.00013972,2]
[333863453,1722579056010,-500.0,0.00013972,2]
[333863454,1722579056020,-596.37,0.00013972,2]
[333863455,1722579056030,-1495.23,0.00013972,2]
[333863456,1722579056039,-500.0,0.00013972,2]
[333863457,1722579056050,-1907.27,0.00013972,2]
[333863458,1722579056059,-500.0,0.00013972,2]
[333863459,1722579056068,-500.0,0.00013972,2]
[333863460,1722579056079,-2296.25,0.00013972,2]
[333863461,1722579056089,-500.0,0.00013972,2]
[333863462,1722579056098,-500.0,0.00013972,2]
[333863463,1722579056108,-500.0,0.00013972,2]
[333863464,1722579056118,-2383.19,0.00013972,2]
[333863465,1722579056128,-500.0,0.00013972,2]
[333863466,1722579056140,-503.49756742,0.00013972,2]
[333863467,1722579056149,-2109.37,0.00013972,2]
[333863468,1722579056158,-503.69781008,0.00013972,2]
[333863469,1722579056169,-1239.38,0.00013972,2]
[333863470,1722579056180,-500.0,0.00013972,2]
[333863471,1722579056191,-500.0,0.00013972,2]
[333863472,1722579056203,-550.74543108,0.00013972,2]
[333863473,1722579056213,-500.0,0.00013972,2]
[333863474,1722579056223,-500.0,0.00013972,2]
[333863475,1722579056234,-500.0,0.00013972,2]
[333863476,1722579056243,-500.0,0.00013972,2]
[333863477,1722579056252,-500.0,0.00013972,2]
[333863478,1722579056262,-500.0,0.00013972,2]
[333863479,1722579056271,-500.0,0.00013972,2]
[333863480,1722579056281,-500.0,0.00013972,2]
[333863481,1722579056363,-500.0,0.00013972,2]
[333863482,1722579056372,-500.0,0.00013972,2]
[333863483,1722579056382,-500.0,0.00013972,2]
[333863484,1722579056395,-557.42,0.00013972,2]
[333863485,1722579056404,-500.0,0.00013972,2]
[333863486,1722579056414,-8928.74,0.00013972,2]
[333863487,1722579056425,-500.0,0.00013972,2]
[333863488,1722579056435,-500.0,0.00013972,2]
[333863489,1722579056445,-500.0,0.00013972,2]
[333863490,1722579056454,-500.0,0.00013972,2]
[333863491,1722579056464,-500.0,0.00013972,2]
[333863492,1722579056474,-3974.3,0.00013972,2]
[333863493,1722579056484,-500.0,0.00013972,2]
[333863494,1722579056496,-677.33,0.00013972,2]
[333863495,1722579056506,-1546.82,0.00013972,2]
[333863496,1722579056516,-500.0,0.00013972,2]
[333863497,1722579056527,-500.0,0.00013972,2]
[333863498,1722579056537,-500.0,0.00013972,2]
[333863499,1722579056549,-500.0,0.00013972,2]
[333863500,1722579056558,-1043.82,0.00013972,2]
[333863501,1722579056568,-500.0,0.00013972,2]
[333863502,1722579056577,-500.0,0.00013972,2]
[333863503,1722579056588,-500.0,0.00013972,2]
[333863504,1722579056599,-545.96,0.00013972,2]
[333863505,1722579056610,-500.0,0.00013972,2]
[333863506,1722579056621,-1153.47,0.00013972,2]
[333863507,1722579056633,-500.0,0.00013972,2]
[333863508,1722579056646,-500.0,0.00013972,2]
[333863509,1722579056657,-500.0,0.00013972,2]
[333863510,1722579056667,-500.0,0.00013972,2]
[333863511,1722579056676,-500.0,0.00013972,2]
[333863512,1722579056686,-163.3583793,0.00013972,2]
[333863513,1722579056696,-749.82,0.00013972,2]
[333863514,1722579056706,-5500.2,0.00013972,2]
[333863515,1722579056717,-500.0,0.00013972,2]
[333863516,1722579056726,-560.79,0.00013972,2]
[333863517,1722579056736,-1545.14,0.00013972,2]
[333863518,1722579056745,-760.37,0.00013972,2]
[333863519,1722579056754,-500.0,0.00013972,2]
[333863520,1722579056763,-500.0,0.00013972,2]
[333863521,1722579056773,-500.0,0.00013972,2]
[333863522,1722579056782,-500.0,0.00013972,2]
[333863523,1722579056791,-500.0,0.00013972,2]
[333863524,1722579056800,-500.0,0.00013972,2]
[333863525,1722579056809,-500.0,0.00013972,2]
[333863526,1722579056818,-6346.79,0.00013972,2]
[333863527,1722579056828,-919.48,0.00013972,2]
[333863528,1722579056837,-509.57953487,0.00013972,2]
[333863529,1722579056847,-500.0,0.00013972,2]
[333863530,1722579056856,-703.72,0.00013972,2]
[333863531,1722579056865,-500.0,0.00013972,2]
[333863532,1722579056875,-516.88,0.00013972,2]
[333863533,1722579056884,-500.0,0.00013972,2]
[333863534,1722579056898,-510.95759128,0.00013972,2]
[333863535,1722579056909,-500.0,0.00013972,2]
[333863536,1722579056918,-2490.95,0.00013972,2]
[333863537,1722579056931,-795.32,0.00013972,2]
[333863538,1722579056940,-500.0,0.00013972,2]
[333863539,1722579056949,-500.0,0.00013972,2]
[333863540,1722579056958,-500.0,0.00013972,2]
[333863541,1722579056967,-505.92899947,0.00013972,2]
[333863542,1722579056976,-500.0,0.00013972,2]
[333863543,1722579056985,-500.0,0.00013972,2]
[333863544,1722579056994,-500.0,0.00013972,2]
[333863545,1722579057004,-500.0,0.00013972,2]
[333863546,1722579057014,-511.52633496,0.00013972,2]
[333863547,1722579057023,-500.0,0.00013972,2]
[333863548,1722579057032,-500.0,0.00013972,2]
[333863549,1722579057042,-500.0,0.00013972,2]
[333863550,1722579057051,-500.0,0.00013972,2]
[333863551,1722579057061,-1047.04,0.00013972,2]
[333863552,1722579057070,-500.0,0.00013972,2]
[333863553,1722579057079,-500.0,0.00013972,2]
[333863554,1722579057088,-173.31895532,0.00013972,2]
[333863555,1722579057097,-500.0,0.00013972,2]
[333863556,1722579057106,-688.64,0.00013972,2]
[333863557,1722579057115,-500.0,0.00013972,2]
[333863558,1722579057125,-4027.37,0.00013972,2]
[333863559,1722579057135,-500.0,0.00013972,2]
[333863560,1722579057149,-500.0,0.00013972,2]
[333863561,1722579057160,-769.86,0.00013972,2]
[333863562,1722579057170,-500.0,0.00013972,2]
[333863563,1722579057179,-500.0,0.00013972,2]
[333863564,1722579057188,-500.0,0.00013972,2]
[333863565,1722579057198,-500.0,0.00013972,2]
[333863566,1722579057207,-677.81,0.00013972,2]
[333863567,1722579057217,-1034.52,0.00013972,2]
[333863568,1722579057227,-500.0,0.00013972,2]
[333863569,1722579057237,-746.99,0.00013972,2]
[333863570,1722579057246,-500.0,0.00013972,2]
[333863571,1722579057255,-500.0,0.00013972,2]
[333863572,1722579057266,-235.25294636,0.00013972,2]
[333863573,1722579057275,-817.67,0.00013972,2]
[333863574,1722579057285,-1121.06,0.00013972,2]
[333863575,1722579057294,-500.0,0.00013972,2]
[333863576,1722579057303,-305.55153422,0.00013972,2]
[333863577,1722579057313,-500.0,0.00013972,2]
[333863578,1722579057323,-746.97,0.00013972,2]
[333863579,1722579057332,-1338.14,0.00013972,2]
[333863580,1722579057341,-1468.19,0.00013972,2]
[333863581,1722579057351,-500.0,0.00013972,2]
[333863582,1722579057360,-150.112233,0.00014,2]
[333863583,1722579057369,-297.21655646,0.00014,2]
[333863584,1722579057378,-1000.0,0.00014,14]
[333863585,1722579057387,-600.0,0.00014084,2]
[333863586,1722579057401,-150.112233,0.000141,2]